[Event "Live Chess"]
[Site "Chess.com"]
[Date "2023.05.21"]
[Round "-"]
[White "gmnorfolk"]
[Black "raminguy"]
[Result "1/2-1/2"]
[WhiteElo "2141"]
[BlackElo "1950"]
[TimeControl "300"]
[EndTime "6:45:06 PDT"]
[Termination "Game drawn by agreement"]

1. d4 {[%clk 0:04:58.5]} 1... d5 {[%clk 0:04:59.2]} 2. c4 {[%clk 0:04:57]} 2...
e6 {[%clk 0:04:58.6]} 3. Nc3 {[%clk 0:04:55.2]} 3... a6 {[%clk 0:04:58.1]} 4.
cxd5 {[%clk 0:04:51.9]} 4... exd5 {[%clk 0:04:58]} 5. Nf3 {[%clk 0:04:50.8]}
5... c6 {[%clk 0:04:57.4]} 6. Bg5 {[%clk 0:04:50.4]} 6... Be7 {[%clk 0:04:56.2]}
7. Bxe7 {[%clk 0:04:48.4]} 7... Nxe7 {[%clk 0:04:56.1]} 8. e3 {[%clk 0:04:48]}
8... Nd7 {[%clk 0:04:55.8]} 9. Bd3 {[%clk 0:04:46.4]} 9... Nf6 {[%clk
0:04:55.4]} 10. O-O {[%clk 0:04:45.1]} 10... O-O {[%clk 0:04:55.1]} 11. h3
{[%clk 0:04:42.3]} 11... Re8 {[%clk 0:04:50.9]} 12. Qc2 {[%clk 0:04:40.8]} 12...
g6 {[%clk 0:04:49.8]} 13. a3 {[%clk 0:04:39.7]} 13... Bf5 {[%clk 0:04:48.9]} 14.
b4 {[%clk 0:04:38.7]} 14... Bxd3 {[%clk 0:04:47.7]} 15. Qxd3 {[%clk 0:04:37.9]}
15... Nf5 {[%clk 0:04:47.3]} 16. a4 {[%clk 0:04:35]} 16... Qd6 {[%clk 0:04:44]}
17. b5 {[%clk 0:04:32.3]} 17... a5 {[%clk 0:04:42.3]} 18. bxc6 {[%clk
0:04:30.5]} 18... bxc6 {[%clk 0:04:41.6]} 19. Rab1 {[%clk 0:04:28.8]} 19... Reb8
{[%clk 0:04:40.5]} 20. Rfc1 {[%clk 0:04:23.1]} 20... Rb4 {[%clk 0:04:39.1]} 21.
Qc2 {[%clk 0:04:14.7]} 21... Rab8 {[%clk 0:04:37.1]} 22. Na2 {[%clk 0:04:12.4]}
22... Rxb1 {[%clk 0:04:35.4]} 23. Rxb1 {[%clk 0:04:12.3]} 23... Rxb1+ {[%clk
0:04:34]} 24. Qxb1 {[%clk 0:04:12]} 24... Ne4 {[%clk 0:04:32.6]} 25. Qb3 {[%clk
0:04:04.5]} 25... c5 {[%clk 0:04:16.8]} 26. dxc5 {[%clk 0:03:59.5]} 26... Qxc5
{[%clk 0:04:15.9]} 27. g4 {[%clk 0:03:48.1]} 27... Nfd6 {[%clk 0:04:03.9]} 28.
Nd4 {[%clk 0:03:45.9]} 28... Nc4 {[%clk 0:03:46.6]} 29. Nc3 {[%clk 0:03:33.4]}
29... Ned2 {[%clk 0:03:43.2]} 30. Qb8+ {[%clk 0:03:23.9]} 30... Kg7 {[%clk
0:03:41.6]} 31. Qb5 {[%clk 0:03:19.4]} 31... Qa3 {[%clk 0:03:38.7]} 32. Kh2
{[%clk 0:02:31]} 32... Qxc3 {[%clk 0:03:32.2]} 33. Qxd5 {[%clk 0:02:28.3]} 33...
Qb2 {[%clk 0:03:12.4]} 34. g5 {[%clk 0:02:21.1]} 34... Qa2 {[%clk 0:02:55]} 35.
Qd8 {[%clk 0:02:16.5]} 35... Ne4 {[%clk 0:02:40.2]} 36. Ne6+ {[%clk 0:02:05]}
36... fxe6 {[%clk 0:02:29.5]} 37. Qe7+ {[%clk 0:02:02]} 1/2-1/2

[Event "Live Chess"]
[Site "Chess.com"]
[Date "2023.05.21"]
[Round "-"]
[White "Ferrarifan27"]
[Black "martynstanley"]
[Result "1-0"]
[WhiteElo "2070"]
[BlackElo "1026"]
[TimeControl "300"]
[EndTime "6:45:17 PDT"]
[Termination "Ferrarifan27 won by checkmate"]

1. e4 {[%clk 0:04:57.7]} 1... e6 {[%clk 0:04:59.1]} 2. d4 {[%clk 0:04:56]} 2...
d5 {[%clk 0:04:58.3]} 3. e5 {[%clk 0:04:54.1]} 3... c5 {[%clk 0:04:57.4]} 4. c3
{[%clk 0:04:52.4]} 4... Nc6 {[%clk 0:04:56.4]} 5. Nf3 {[%clk 0:04:50]} 5... Qb6
{[%clk 0:04:55.2]} 6. a3 {[%clk 0:04:49]} 6... Nh6 {[%clk 0:04:54.1]} 7. b4
{[%clk 0:04:46.2]} 7... cxb4 {[%clk 0:04:48.6]} 8. axb4 {[%clk 0:04:44.1]} 8...
Nf5 {[%clk 0:04:44.7]} 9. Bd3 {[%clk 0:04:38.8]} 9... Qxd4 {[%clk 0:04:43.2]}
10. cxd4 {[%clk 0:04:36]} 10... Ncxd4 {[%clk 0:04:42]} 11. Nxd4 {[%clk
0:04:33.6]} 11... Nxd4 {[%clk 0:04:41.2]} 12. O-O {[%clk 0:04:31.6]} 12... b6
{[%clk 0:04:38.5]} 13. Be3 {[%clk 0:04:25.7]} 13... Nf5 {[%clk 0:04:35.4]} 14.
Bb5+ {[%clk 0:04:21.1]} 14... Bd7 {[%clk 0:04:34.3]} 15. Bxd7+ {[%clk
0:04:19.5]} 15... Kxd7 {[%clk 0:04:33.6]} 16. Qa4+ {[%clk 0:04:17.8]} 16... Kc7
{[%clk 0:04:30.6]} 17. Rc1+ {[%clk 0:04:12.4]} 17... Kb7 {[%clk 0:04:27.8]} 18.
Qd7+ {[%clk 0:04:11.3]} 18... Kb8 {[%clk 0:04:22.8]} 19. Rc8# {[%clk 0:04:09.5]}
1-0

[Event "Live Chess"]
[Site "Chess.com"]
[Date "2023.05.21"]
[Round "-"]
[White "Berdgross"]
[Black "Delacorta"]
[Result "0-1"]
[WhiteElo "697"]
[BlackElo "1383"]
[TimeControl "300"]
[EndTime "6:45:23 PDT"]
[Termination "Delacorta won by resignation"]

1. d4 {[%clk 0:04:57.4]} 1... e6 {[%clk 0:04:59.4]} 2. e4 {[%clk 0:04:57]} 2...
d5 {[%clk 0:04:57.2]} 3. exd5 {[%clk 0:04:55.5]} 3... exd5 {[%clk 0:04:56.5]} 4.
Nf3 {[%clk 0:04:53.6]} 4... Nf6 {[%clk 0:04:55.6]} 5. Nc3 {[%clk 0:04:53.2]}
5... c6 {[%clk 0:04:54.4]} 6. Bg5 {[%clk 0:04:51.9]} 6... Bd6 {[%clk 0:04:52]}
7. Bd3 {[%clk 0:04:46.7]} 7... O-O {[%clk 0:04:50.7]} 8. Bxf6 {[%clk 0:04:40.4]}
8... Qxf6 {[%clk 0:04:48]} 9. O-O {[%clk 0:04:36.9]} 9... Bg4 {[%clk 0:04:45.3]}
10. h3 {[%clk 0:04:35]} 10... Bxf3 {[%clk 0:04:44.3]} 11. Qxf3 {[%clk 0:04:32]}
11... Qxf3 {[%clk 0:04:43.4]} 12. gxf3 {[%clk 0:04:31.3]} 12... Nd7 {[%clk
0:04:41.5]} 13. Rae1 {[%clk 0:04:27]} 13... Rfe8 {[%clk 0:04:39.6]} 14. Rxe8+
{[%clk 0:04:25.3]} 14... Rxe8 {[%clk 0:04:37.9]} 15. Ne2 {[%clk 0:04:20.9]}
15... Nf6 {[%clk 0:04:28.5]} 16. Ng3 {[%clk 0:04:16.4]} 16... g6 {[%clk
0:04:26.7]} 17. c4 {[%clk 0:04:12.4]} 17... dxc4 {[%clk 0:04:17.5]} 18. Bxc4
{[%clk 0:04:09.8]} 18... b5 {[%clk 0:04:16.2]} 19. Bd3 {[%clk 0:04:07.3]} 19...
Nd5 {[%clk 0:04:07.3]} 20. Rc1 {[%clk 0:04:00]} 20... Rc8 {[%clk 0:03:44.2]} 21.
Bxb5 {[%clk 0:03:52.9]} 21... Nf4 {[%clk 0:03:42.3]} 22. Rxc6 {[%clk 0:03:46.1]}
22... Rxc6 {[%clk 0:03:33.8]} 23. Bxc6 {[%clk 0:03:44.7]} 23... Ne6 {[%clk
0:03:22.3]} 24. Bd5 {[%clk 0:03:36.7]} 24... Nxd4 {[%clk 0:03:18]} 25. Nf1
{[%clk 0:03:28.4]} 25... Kg7 {[%clk 0:03:04]} 26. Ne3 {[%clk 0:03:26.6]} 26...
Kf6 {[%clk 0:02:56.8]} 27. Ng4+ {[%clk 0:03:21.7]} 27... Kg7 {[%clk 0:02:51.7]}
28. Be4 {[%clk 0:03:07.2]} 28... f5 {[%clk 0:02:50.3]} 29. Bxf5 {[%clk
0:02:55.1]} 29... gxf5 {[%clk 0:02:47.6]} 30. Nh2 {[%clk 0:02:47.7]} 30... Kf6
{[%clk 0:02:44.2]} 31. Kg2 {[%clk 0:02:46.8]} 31... Ne2 {[%clk 0:02:34.9]} 32.
b3 {[%clk 0:02:40.6]} 32... Nf4+ {[%clk 0:02:32.4]} 33. Kg3 {[%clk 0:02:38.1]}
33... Nd3+ {[%clk 0:02:31.8]} 34. Kh4 {[%clk 0:02:32.1]} 34... Nc1 {[%clk
0:02:29.9]} 35. Nf1 {[%clk 0:02:25.4]} 35... Nxa2 {[%clk 0:02:28.1]} 36. Ne3
{[%clk 0:02:23.9]} 36... Nb4 {[%clk 0:02:22.8]} 37. Nc4 {[%clk 0:02:20.4]} 37...
Bc7 {[%clk 0:02:20.9]} 38. Kh5 {[%clk 0:02:12.5]} 38... Kg7 {[%clk 0:02:12.2]}
39. Ne3 {[%clk 0:02:06.8]} 39... f4 {[%clk 0:02:04.2]} 40. Ng2 {[%clk 0:01:47]}
40... Nc6 {[%clk 0:02:01.8]} 41. Nh4 {[%clk 0:01:36.8]} 41... Nd4 {[%clk
0:02:00.3]} 42. Kg4 {[%clk 0:01:31.6]} 42... Nxb3 {[%clk 0:01:57.8]} 43. Nf5+
{[%clk 0:01:29.2]} 43... Kf6 {[%clk 0:01:47.3]} 44. Nh6 {[%clk 0:01:14.2]} 44...
a5 {[%clk 0:01:45.1]} 45. Ng8+ {[%clk 0:01:11.6]} 45... Kg7 {[%clk 0:01:41.2]}
46. Ne7 {[%clk 0:01:07.8]} 46... a4 {[%clk 0:01:35.6]} 47. Nd5 {[%clk
0:00:58.1]} 47... Bd6 {[%clk 0:01:28.1]} 48. Nxf4 {[%clk 0:00:47.8]} 48... Bxf4
{[%clk 0:01:26.3]} 49. Kxf4 {[%clk 0:00:46.8]} 49... a3 {[%clk 0:01:26.2]} 50.
Ke3 {[%clk 0:00:38.3]} 50... a2 {[%clk 0:01:25.3]} 0-1

[Event "Live Chess"]
[Site "Chess.com"]
[Date "2023.05.21"]
[Round "-"]
[White "zdanevych"]
[Black "CheckThis4"]
[Result "0-1"]
[WhiteElo "1498"]
[BlackElo "2524"]
[TimeControl "300"]
[EndTime "6:45:24 PDT"]
[Termination "CheckThis4 won by resignation"]

1. d4 {[%clk 0:04:58.2]} 1... Nf6 {[%clk 0:04:58.1]} 2. c4 {[%clk 0:04:57.6]}
2... e5 {[%clk 0:04:56.7]} 3. dxe5 {[%clk 0:04:56.5]} 3... Ng4 {[%clk
0:04:55.8]} 4. Nf3 {[%clk 0:04:55.4]} 4... Bc5 {[%clk 0:04:53.7]} 5. e3 {[%clk
0:04:50.2]} 5... Nc6 {[%clk 0:04:50.4]} 6. h3 {[%clk 0:04:48.7]} 6... Ngxe5
{[%clk 0:04:48.6]} 7. Nxe5 {[%clk 0:04:47.9]} 7... Nxe5 {[%clk 0:04:48.5]} 8.
Nc3 {[%clk 0:04:46.4]} 8... O-O {[%clk 0:04:46.3]} 9. Be2 {[%clk 0:04:45.8]}
9... Re8 {[%clk 0:04:44.4]} 10. O-O {[%clk 0:04:45.2]} 10... a5 {[%clk
0:04:42.4]} 11. b3 {[%clk 0:04:43.8]} 11... Ra6 {[%clk 0:04:39.8]} 12. Bb2
{[%clk 0:04:43]} 12... Rg6 {[%clk 0:04:38.1]} 13. Ne4 {[%clk 0:04:39.5]} 13...
Ba7 {[%clk 0:04:24.6]} 14. Ng3 {[%clk 0:04:31.1]} 14... Bxe3 {[%clk 0:04:14.1]}
15. Bh5 {[%clk 0:04:21]} 15... Rxg3 {[%clk 0:04:09.7]} 16. fxe3 {[%clk
0:04:14.4]} 16... g6 {[%clk 0:04:03]} 17. Bf3 {[%clk 0:03:54.7]} 17... d6 {[%clk
0:04:01.4]} 18. Qd4 {[%clk 0:03:45.4]} 18... Qg5 {[%clk 0:03:50]} 19. Qe4 {[%clk
0:03:29.7]} 19... Bf5 {[%clk 0:03:41.4]} 20. Qxb7 {[%clk 0:03:24.9]} 20... Qxe3+
{[%clk 0:03:35.4]} 21. Kh1 {[%clk 0:03:17.2]} 21... Bxh3 {[%clk 0:03:17.7]} 22.
Bxe5 {[%clk 0:03:07.1]} 22... Rxe5 {[%clk 0:03:12.5]} 23. gxh3 {[%clk
0:02:52.2]} 23... Rxh3+ {[%clk 0:03:06.4]} 24. Kg2 {[%clk 0:02:51.3]} 24... Rh4
{[%clk 0:03:04.2]} 25. Qc8+ {[%clk 0:02:45.4]} 25... Kg7 {[%clk 0:03:02.2]} 26.
Qxc7 {[%clk 0:02:38.4]} 26... Rg5+ {[%clk 0:02:58.4]} 0-1

[Event "Live Chess"]
[Site "Chess.com"]
[Date "2023.05.21"]
[Round "-"]
[White "Olisingapore"]
[Black "MarkLim1"]
[Result "1-0"]
[WhiteElo "1791"]
[BlackElo "1698"]
[TimeControl "300"]
[EndTime "6:45:29 PDT"]
[Termination "Olisingapore won by resignation"]

1. d4 {[%clk 0:04:59.1]} 1... d5 {[%clk 0:04:58.5]} 2. c4 {[%clk 0:04:58.6]}
2... c6 {[%clk 0:04:57.6]} 3. Nf3 {[%clk 0:04:57.7]} 3... Nf6 {[%clk 0:04:56.6]}
4. g3 {[%clk 0:04:57.3]} 4... Bf5 {[%clk 0:04:55.3]} 5. Qb3 {[%clk 0:04:55.8]}
5... Qc7 {[%clk 0:04:50.8]} 6. Bg2 {[%clk 0:04:54.2]} 6... e6 {[%clk 0:04:49.9]}
7. Bf4 {[%clk 0:04:53.6]} 7... Qb6 {[%clk 0:04:46.6]} 8. c5 {[%clk 0:04:51.6]}
8... Qxb3 {[%clk 0:04:45.5]} 9. axb3 {[%clk 0:04:51.5]} 9... Be7 {[%clk
0:04:42.5]} 10. Nc3 {[%clk 0:04:48.8]} 10... O-O {[%clk 0:04:41.4]} 11. O-O
{[%clk 0:04:47]} 11... Nbd7 {[%clk 0:04:40.6]} 12. Ne5 {[%clk 0:04:31.7]} 12...
Nxe5 {[%clk 0:04:37.5]} 13. Bxe5 {[%clk 0:04:24]} 13... Bc2 {[%clk 0:04:33.4]}
14. b4 {[%clk 0:04:16.6]} 14... b6 {[%clk 0:04:25.6]} 15. Rfc1 {[%clk
0:04:15.2]} 15... Bb3 {[%clk 0:04:23.1]} 16. Ra3 {[%clk 0:04:01.5]} 16... Bc4
{[%clk 0:04:20.3]} 17. b3 {[%clk 0:04:00.5]} 17... Bb5 {[%clk 0:04:18.7]} 18.
Nxb5 {[%clk 0:03:57.9]} 18... cxb5 {[%clk 0:04:17.5]} 19. Rca1 {[%clk 0:03:55]}
19... Nd7 {[%clk 0:03:59.9]} 20. Rxa7 {[%clk 0:03:40.4]} 20... Nxe5 {[%clk
0:03:57.7]} 21. dxe5 {[%clk 0:03:25.6]} 21... Rxa7 {[%clk 0:03:54.1]} 22. Rxa7
{[%clk 0:03:23.4]} 22... Bg5 {[%clk 0:03:52.9]} 23. cxb6 {[%clk 0:03:18.1]}
23... Rb8 {[%clk 0:03:49.7]} 24. b7 {[%clk 0:03:16.7]} 24... h5 {[%clk 0:03:35]}
25. Ra8 {[%clk 0:03:09.1]} 1-0

[Event "Live Chess"]
[Site "Chess.com"]
[Date "2023.05.21"]
[Round "-"]
[White "chessfiction"]
[Black "wadsy27"]
[Result "0-1"]
[WhiteElo "2312"]
[BlackElo "2554"]
[TimeControl "300"]
[EndTime "6:45:33 PDT"]
[Termination "wadsy27 won on time"]

1. e4 {[%clk 0:04:57.5]} 1... c5 {[%clk 0:04:58.3]} 2. d4 {[%clk 0:04:56.9]}
2... cxd4 {[%clk 0:04:57]} 3. c3 {[%clk 0:04:56]} 3... dxc3 {[%clk 0:04:55.1]}
4. Nxc3 {[%clk 0:04:55.9]} 4... Nc6 {[%clk 0:04:52.8]} 5. Bg5 {[%clk 0:04:55]}
5... d6 {[%clk 0:04:44.9]} 6. Bc4 {[%clk 0:04:52.8]} 6... Nf6 {[%clk 0:04:43.4]}
7. Nf3 {[%clk 0:04:51.1]} 7... e6 {[%clk 0:04:41.3]} 8. O-O {[%clk 0:04:49.3]}
8... Be7 {[%clk 0:04:40.6]} 9. Rc1 {[%clk 0:04:46.7]} 9... O-O {[%clk
0:04:39.2]} 10. Qe2 {[%clk 0:04:45.8]} 10... h6 {[%clk 0:04:28.9]} 11. Bh4
{[%clk 0:04:44]} 11... a6 {[%clk 0:04:20]} 12. Rfd1 {[%clk 0:04:41.8]} 12... Qc7
{[%clk 0:04:15.2]} 13. h3 {[%clk 0:04:32.1]} 13... Ne5 {[%clk 0:04:06.2]} 14.
Nxe5 {[%clk 0:04:26.9]} 14... dxe5 {[%clk 0:04:05.4]} 15. Bb3 {[%clk 0:03:59.1]}
15... Qb8 {[%clk 0:04:02.8]} 16. g4 {[%clk 0:03:54.3]} 16... b5 {[%clk
0:03:56.4]} 17. g5 {[%clk 0:03:53.1]} 17... Nh7 {[%clk 0:03:54.3]} 18. g6 {[%clk
0:03:40.9]} 18... Bxh4 {[%clk 0:03:53]} 19. gxh7+ {[%clk 0:03:40.1]} 19... Kxh7
{[%clk 0:03:51.9]} 20. Qh5 {[%clk 0:03:37]} 20... Bg5 {[%clk 0:03:49.3]} 21. Rc2
{[%clk 0:03:32]} 21... a5 {[%clk 0:03:38.9]} 22. a4 {[%clk 0:03:29.4]} 22...
bxa4 {[%clk 0:03:34.6]} 23. Bxa4 {[%clk 0:03:27.4]} 23... Ra6 {[%clk 0:03:24.5]}
24. Rd3 {[%clk 0:03:19.8]} 24... Rd6 {[%clk 0:03:22.5]} 25. Rg3 {[%clk
0:03:17.6]} 25... Bd7 {[%clk 0:03:14.1]} 26. Rxg5 {[%clk 0:03:11.5]} 26... Bxa4
{[%clk 0:03:10]} 27. Nxa4 {[%clk 0:03:05]} 27... Qb3 {[%clk 0:03:06.9]} 28.
Rxg7+ {[%clk 0:02:59]} 28... Kxg7 {[%clk 0:03:05.6]} 29. Qxe5+ {[%clk 0:02:58]}
29... Kg8 {[%clk 0:03:01]} 30. Rc3 {[%clk 0:02:34.7]} 30... Qd1+ {[%clk
0:02:52.1]} 31. Kh2 {[%clk 0:02:20.1]} 31... Rd3 {[%clk 0:02:49.9]} 32. Nc5
{[%clk 0:02:06.5]} 32... Rxc3 {[%clk 0:02:47]} 33. Qxc3 {[%clk 0:02:01.7]} 33...
Rc8 {[%clk 0:02:05.1]} 34. Qg3+ {[%clk 0:01:53.7]} 34... Kf8 {[%clk 0:02:01.4]}
35. Nd3 {[%clk 0:01:43]} 35... Qh5 {[%clk 0:01:26]} 36. Nf4 {[%clk 0:01:29]}
36... Qg5 {[%clk 0:01:19.6]} 37. Qa3+ {[%clk 0:01:25.7]} 37... Qc5 {[%clk
0:01:09.3]} 38. Qf3 {[%clk 0:01:21]} 38... Qe5 {[%clk 0:00:58.6]} 39. Kg2 {[%clk
0:01:19.3]} 39... Ke7 {[%clk 0:00:45.2]} 40. Qa3+ {[%clk 0:01:16.1]} 40... Qc5
{[%clk 0:00:44.4]} 41. Qg3 {[%clk 0:01:10.5]} 41... Qg5 {[%clk 0:00:40.4]} 42.
Kf3 {[%clk 0:00:59.2]} 42... Rb8 {[%clk 0:00:34.7]} 43. Nd5+ {[%clk 0:00:53.2]}
43... exd5 {[%clk 0:00:33.2]} 44. Qxb8 {[%clk 0:00:52.7]} 44... dxe4+ {[%clk
0:00:28]} 45. Kxe4 {[%clk 0:00:47.6]} 45... Qh4+ {[%clk 0:00:27.3]} 46. f4
{[%clk 0:00:39.8]} 46... Qxh3 {[%clk 0:00:24.9]} 47. Qc7+ {[%clk 0:00:36.2]}
47... Kf8 {[%clk 0:00:23.3]} 48. Qxa5 {[%clk 0:00:26.5]} 48... Qg2+ {[%clk
0:00:22.1]} 49. Ke3 {[%clk 0:00:24.9]} 49... Qxb2 {[%clk 0:00:21.3]} 50. Qd8+
{[%clk 0:00:22.9]} 50... Kg7 {[%clk 0:00:20.7]} 51. Qd7 {[%clk 0:00:17.9]} 51...
Qc3+ {[%clk 0:00:19.7]} 52. Ke4 {[%clk 0:00:16.6]} 52... Qc2+ {[%clk 0:00:18.5]}
53. Ke3 {[%clk 0:00:15.8]} 53... Qc3+ {[%clk 0:00:17.9]} 54. Ke4 {[%clk
0:00:15.3]} 54... Qf6 {[%clk 0:00:17.6]} 55. Kf3 {[%clk 0:00:11.9]} 55... h5
{[%clk 0:00:16.7]} 56. Qh3 {[%clk 0:00:10.8]} 56... Qg6 {[%clk 0:00:15.8]} 57.
Qh4 {[%clk 0:00:10]} 57... f6 {[%clk 0:00:13.7]} 58. Qf2 {[%clk 0:00:09.2]}
58... Qg4+ {[%clk 0:00:12.6]} 59. Ke3 {[%clk 0:00:07.9]} 59... Kg6 {[%clk
0:00:12.5]} 60. Qc2+ {[%clk 0:00:06.9]} 60... Qf5 {[%clk 0:00:11.4]} 61. Qf2
{[%clk 0:00:06.8]} 61... Qc5+ {[%clk 0:00:10.1]} 62. Kf3 {[%clk 0:00:06.7]}
62... Qxf2+ {[%clk 0:00:09.7]} 63. Kxf2 {[%clk 0:00:06.5]} 63... Kf5 {[%clk
0:00:09.2]} 64. Kg3 {[%clk 0:00:06.4]} 64... h4+ {[%clk 0:00:08.2]} 65. Kf3
{[%clk 0:00:06]} 65... h3 {[%clk 0:00:07.6]} 66. Kg3 {[%clk 0:00:05.6]} 66... h2
{[%clk 0:00:07.5]} 67. Kxh2 {[%clk 0:00:05.2]} 67... Kxf4 {[%clk 0:00:07.4]} 68.
Kg1 {[%clk 0:00:04.4]} 68... Kg3 {[%clk 0:00:06.7]} 69. Kf1 {[%clk 0:00:04.3]}
69... Kf3 {[%clk 0:00:06]} 70. Kg1 {[%clk 0:00:04.2]} 70... f5 {[%clk
0:00:05.5]} 71. Kf1 {[%clk 0:00:04.1]} 71... f4 {[%clk 0:00:04.9]} 72. Kg1
{[%clk 0:00:03.6]} 72... Ke2 {[%clk 0:00:04.5]} 73. Kh2 {[%clk 0:00:03.2]} 73...
f3 {[%clk 0:00:04.4]} 74. Kg3 {[%clk 0:00:03.1]} 74... f2 {[%clk 0:00:04.2]} 75.
Kf4 {[%clk 0:00:03]} 75... f1=Q+ {[%clk 0:00:04]} 76. Ke4 {[%clk 0:00:02.9]}
76... Qf3+ {[%clk 0:00:03.7]} 77. Kd4 {[%clk 0:00:02.8]} 77... Qe3+ {[%clk
0:00:03.3]} 78. Kc4 {[%clk 0:00:02.7]} 78... Qd3+ {[%clk 0:00:03]} 79. Kb4
{[%clk 0:00:02.6]} 79... Ke3 {[%clk 0:00:02.7]} 80. Ka4 {[%clk 0:00:02.5]} 80...
Ke4 {[%clk 0:00:02.5]} 81. Ka5 {[%clk 0:00:01.7]} 81... Qd4 {[%clk 0:00:02.4]}
82. Kb5 {[%clk 0:00:01]} 82... Qc3 {[%clk 0:00:02.2]} 83. Ka6 {[%clk 0:00:00.9]}
83... Kd5 {[%clk 0:00:01.7]} 84. Kb7 {[%clk 0:00:00.8]} 84... Kd6 {[%clk
0:00:01.3]} 85. Ka6 {[%clk 0:00:00.7]} 85... Qb4 {[%clk 0:00:00.6]} 86. Ka7
{[%clk 0:00:00.1]} 86... Kc7 {[%clk 0:00:00.5]} 0-1

[Event "Live Chess"]
[Site "Chess.com"]
[Date "2023.05.21"]
[Round "-"]
[White "BillythekidFellowes"]
[Black "davigator"]
[Result "1-0"]
[WhiteElo "2098"]
[BlackElo "2293"]
[TimeControl "300"]
[EndTime "6:45:38 PDT"]
[Termination "BillythekidFellowes won by resignation"]

1. e4 {[%clk 0:04:52.3]} 1... c5 {[%clk 0:04:33.4]} 2. Nf3 {[%clk 0:04:48]} 2...
Nc6 {[%clk 0:04:31.4]} 3. Bb5 {[%clk 0:04:47]} 3... g6 {[%clk 0:04:29.2]} 4. c3
{[%clk 0:04:45.7]} 4... Nf6 {[%clk 0:04:26.5]} 5. d3 {[%clk 0:04:43.2]} 5... Bg7
{[%clk 0:04:24.8]} 6. Be3 {[%clk 0:04:42.8]} 6... d6 {[%clk 0:04:10.8]} 7. a4
{[%clk 0:04:40.3]} 7... O-O {[%clk 0:04:09.1]} 8. O-O {[%clk 0:04:39.1]} 8...
Bd7 {[%clk 0:04:04.4]} 9. Na3 {[%clk 0:04:37]} 9... e5 {[%clk 0:03:57.9]} 10.
Nc4 {[%clk 0:04:34]} 10... Qc7 {[%clk 0:03:57.1]} 11. a5 {[%clk 0:04:31.3]}
11... Ng4 {[%clk 0:03:52.2]} 12. h3 {[%clk 0:04:25.4]} 12... Nxe3 {[%clk
0:03:50.5]} 13. fxe3 {[%clk 0:04:25.3]} 13... h6 {[%clk 0:03:49.6]} 14. a6
{[%clk 0:04:23.8]} 14... b6 {[%clk 0:03:46.9]} 15. Rc1 {[%clk 0:04:14.3]} 15...
Rad8 {[%clk 0:03:44.6]} 16. d4 {[%clk 0:04:13.2]} 16... Bc8 {[%clk 0:03:39.7]}
17. Qa4 {[%clk 0:04:04.8]} 17... Nb8 {[%clk 0:03:34.7]} 18. b4 {[%clk 0:04:03]}
18... exd4 {[%clk 0:03:20.4]} 19. cxd4 {[%clk 0:04:00.7]} 19... Qe7 {[%clk
0:03:20]} 20. Ncd2 {[%clk 0:03:55]} 20... Be6 {[%clk 0:03:04.2]} 21. d5 {[%clk
0:03:52.4]} 21... Bc8 {[%clk 0:03:02.5]} 22. bxc5 {[%clk 0:03:46.4]} 22... bxc5
{[%clk 0:02:59]} 23. e5 {[%clk 0:03:21.3]} 23... Bxe5 {[%clk 0:02:54.8]} 24.
Nxe5 {[%clk 0:03:19.2]} 24... Qxe5 {[%clk 0:02:53.9]} 25. Ne4 {[%clk 0:03:18.7]}
25... f5 {[%clk 0:02:49.1]} 26. Ng3 {[%clk 0:03:14.9]} 26... Qxe3+ {[%clk
0:02:47.4]} 27. Kh2 {[%clk 0:03:14]} 27... f4 {[%clk 0:02:41.9]} 28. Ne4 {[%clk
0:03:09.1]} 28... f3 {[%clk 0:02:35.7]} 29. Rce1 {[%clk 0:03:07.7]} 29... Qf4+
{[%clk 0:02:08.4]} 30. g3 {[%clk 0:03:06]} 30... Qe5 {[%clk 0:01:58.4]} 31. Rf2
{[%clk 0:02:57.8]} 31... Qh5 {[%clk 0:01:46.3]} 32. Rh1 {[%clk 0:02:48.8]} 32...
Qxh3+ {[%clk 0:01:31.3]} 33. Kg1 {[%clk 0:02:47.6]} 33... Qf5 {[%clk 0:01:29.4]}
34. Bd3 {[%clk 0:02:43.4]} 34... Qe5 {[%clk 0:01:21.3]} 35. Rxh6 {[%clk
0:02:39.3]} 35... Kg7 {[%clk 0:01:18.5]} 36. Rh4 {[%clk 0:02:33.1]} 36... Bf5
{[%clk 0:01:09.8]} 37. Qc2 {[%clk 0:02:18.4]} 37... Rh8 {[%clk 0:01:08.3]} 38.
Rxf3 {[%clk 0:02:11.8]} 38... Rxh4 {[%clk 0:00:59.2]} 39. gxh4 {[%clk
0:02:11.7]} 39... Rh8 {[%clk 0:00:58]} 40. Ng3 {[%clk 0:01:38.3]} 40... Rxh4
{[%clk 0:00:52.7]} 41. Bxf5 {[%clk 0:01:35.6]} 41... gxf5 {[%clk 0:00:50.5]} 42.
Nxf5+ {[%clk 0:01:34]} 42... Kh8 {[%clk 0:00:49.7]} 43. Nxh4 {[%clk 0:01:32.5]}
43... Qe1+ {[%clk 0:00:46]} 44. Kg2 {[%clk 0:01:29.7]} 44... Qxh4 {[%clk
0:00:39.4]} 45. Rh3 {[%clk 0:01:29]} 45... Qxh3+ {[%clk 0:00:39]} 46. Kxh3
{[%clk 0:01:28.9]} 46... Nxa6 {[%clk 0:00:38]} 47. Qg6 {[%clk 0:01:26.2]} 47...
Nb4 {[%clk 0:00:35.4]} 48. Qxd6 {[%clk 0:01:25.2]} 48... a5 {[%clk 0:00:33.9]}
49. Qxc5 {[%clk 0:01:24.2]} 1-0